bitfinex/quotes_BTCUSD_20220207
["timestamp","ask_amount","ask_price","bid_price","bid_amount"]
[1644247843920,0.0425,43348.0,43343.0,0.05803204]
[1644247844115,0.0425,43348.0,43343.0,0.00030804]
[1644247844766,0.07598364,43349.0,43344.0,0.05]
[1644247844964,0.07598364,43349.0,43347.0,0.05]
[1644247845365,0.115415,43356.0,43346.0,0.24322475]
[1644247845566,0.02151762,43350.0,43347.0,0.1]
[1644247845766,0.02151762,43350.0,43348.0,0.06786039]
[1644247846167,0.3607,43359.0,43350.0,0.173093]
[1644247846368,0.3607,43359.0,43357.0,0.05]
[1644247846768,0.3607,43359.0,43356.0,0.24130775]
[1644247846769,0.115402,43362.0,43356.0,0.165394]
[1644247847267,0.0577,43358.0,43357.0,0.05]
[1644247847466,0.0577,43358.0,43357.0,0.050238]
[1644247847467,0.37662,43358.0,43357.0,0.050238]
[1644247847667,0.50935,43358.0,43357.0,0.05]
[1644247848019,0.45165,43358.0,43357.0,0.05]
[1644247848212,0.45165,43358.0,43356.0,0.100238]
[1644247848412,0.45165,43358.0,43356.0,0.1]
[1644247848413,0.08848,43357.0,43356.0,0.1]
[1644247848613,0.31882589,43357.0,43356.0,0.15]
[1644247849412,0.31882589,43357.0,43356.0,0.39204771]
[1644247849913,0.31882589,43357.0,43356.0,0.1]
[1644247850113,0.31882589,43357.0,43356.0,0.6]
[1644247850718,0.23044,43357.0,43356.0,0.96452941]
[1644247851515,0.23044,43357.0,43356.0,1.03233991]
[1644247851765,0.105541,43358.0,43357.0,0.5]
[1644247851766,0.02455384,43358.0,43357.0,0.5]
[1644247851968,0.02455384,43358.0,43357.0,0.55]
[1644247852265,0.02455384,43358.0,43357.0,0.65]
[1644247852866,0.0242762,43358.0,43357.0,0.65]
[1644247853066,0.0242762,43358.0,43357.0,0.15]
[1644247853267,0.0242762,43358.0,43357.0,0.05]
[1644247853468,0.00064497,43360.0,43357.0,0.05]
[1644247853469,0.00064497,43360.0,43358.0,0.36558227]
[1644247853867,0.00064497,43360.0,43358.0,0.56558227]
[1644247854371,0.057687,43364.0,43359.0,0.77318521]
[1644247854567,0.057687,43364.0,43363.0,0.05]
[1644247854971,0.057687,43364.0,43362.0,0.057686]
[1644247855172,0.057687,43364.0,43363.0,0.1]
[1644247855370,0.057687,43364.0,43363.0,0.65]
[1644247855911,0.057687,43364.0,43363.0,0.6]
[1644247857210,0.05776352,43364.0,43363.0,0.6003016]
[1644247858412,7.652e-05,43364.0,43363.0,0.86498663]
[1644247858614,0.00064497,43366.0,43363.0,0.86498663]
[1644247858814,0.00064497,43366.0,43365.0,0.05]
[1644247859012,0.52639027,43371.0,43365.0,0.82519719]
[1644247859265,0.368,43371.0,43368.0,0.107677]
[1644247859467,0.0202449,43373.0,43369.0,0.21028206]
[1644247859867,0.02196546,43375.0,43369.0,0.71028206]
[1644247860068,0.01696546,43375.0,43369.0,0.71028206]
[1644247860267,0.01696546,43375.0,43371.0,0.05]
[1644247860268,0.07464146,43375.0,43371.0,0.05]
[1644247860468,0.00019404,43374.0,43371.0,0.05]
[1644247861068,0.00019404,43374.0,43372.0,0.5]
[1644247861267,0.00019404,43374.0,43372.0,0.84574466]
[1644247861467,0.01696546,43375.0,43373.0,0.057679]
[1644247861668,0.01761043,43375.0,43373.0,0.057679]
[1644247861869,0.00064497,43375.0,43373.0,0.107679]
[1644247862471,0.115367,43374.0,43373.0,0.107679]
[1644247863922,0.057683,43375.0,43373.0,0.107679]
[1644247865124,0.052683,43375.0,43373.0,0.107679]
[1644247865627,0.28001576,43375.0,43371.0,0.00031751]
[1644247865824,0.28001576,43375.0,43365.0,0.5184595]
[1644247865825,0.8425,43374.0,43365.0,0.5184595]
[1644247866224,0.057703,43368.0,43365.0,0.5184595]
[1644247866864,0.056703,43368.0,43365.0,0.5184595]
[1644247867265,0.056703,43368.0,43366.0,0.05]
[1644247867667,0.28416782,43368.0,43365.0,0.0184595]
[1644247867865,0.28416782,43368.0,43359.0,0.01891958]
[1644247868067,0.60299459,43368.0,43359.0,0.01891958]
[1644247868265,0.60299459,43368.0,43360.0,0.057697]
[1644247868668,0.60299459,43368.0,43360.0,0.5]
[1644247868865,0.00064497,43366.0,43361.0,0.1]
[1644247869265,0.00064497,43366.0,43361.0,0.05]
[1644247869969,0.60299459,43368.0,43361.0,0.05]
[1644247870167,0.00064497,43366.0,43361.0,0.05]
[1644247870617,0.00064497,43366.0,43357.0,0.51813559]
[1644247870826,0.08549288,43361.0,43357.0,0.51813559]
[1644247871018,0.31462045,43363.0,43357.0,0.51813559]
[1644247871418,0.00064497,43364.0,43358.0,0.05]
[1644247871618,0.08903524,43368.0,43359.0,0.05]
[1644247871817,0.08903524,43368.0,43364.0,0.27225781]
[1644247872017,0.08903524,43368.0,43366.0,0.05]
[1644247872319,0.08903524,43368.0,43364.0,0.05]
[1644247872523,0.08903524,43368.0,43363.0,0.05024135]
[1644247873816,0.0896786,43368.0,43363.0,0.00024135]
[1644247874263,0.2627856,43368.0,43363.0,0.00024135]
[1644247874664,0.26214224,43368.0,43363.0,0.00024135]
[1644247874863,0.2627856,43368.0,43363.0,0.05024135]
[1644247875865,0.32149778,43367.0,43363.0,0.05024135]
[1644247876266,0.63439583,43367.0,43363.0,0.00024135]
[1644247876464,0.53439583,43367.0,43363.0,0.00024135]
[1644247876765,0.857709,43365.0,43357.0,0.40024135]
[1644247876967,0.22394658,43358.0,43357.0,0.33778935]
[1644247877463,0.06406461,43359.0,43355.0,0.02155594]
[1644247877864,0.06406461,43359.0,43352.0,0.05]
[1644247878322,0.06406461,43359.0,43351.0,0.05]
[1644247878522,0.12177561,43359.0,43353.0,0.00071884]
[1644247878923,0.12177561,43359.0,43354.0,0.057708]
[1644247879122,0.12177561,43359.0,43353.0,0.00071884]
[1644247879522,0.12177561,43359.0,43352.0,0.05]
[1644247879721,0.12177561,43359.0,43354.0,0.00071884]
[1644247880326,0.057711,43359.0,43354.0,0.19716215]
[1644247880724,0.057711,43359.0,43355.0,0.05]
[1644247881428,0.07614999,43358.0,43355.0,0.05]
[1644247881872,0.057711,43359.0,43356.0,0.057698]
[1644247882268,0.057711,43359.0,43356.0,0.05018383]
[1644247882470,0.057711,43359.0,43358.0,0.05]
[1644247883669,0.057711,43359.0,43356.0,0.10018383]
[1644247883871,0.057711,43359.0,43358.0,0.05]
[1644247884070,0.057711,43359.0,43356.0,0.27328783]
[1644247884272,0.057711,43359.0,43358.0,0.05]
[1644247884470,0.057711,43359.0,43358.0,0.1]
[1644247884670,0.057695,43362.0,43358.0,0.1]
[1644247884870,0.057695,43362.0,43359.0,0.057696]
[1644247885070,0.057695,43362.0,43359.0,0.115392]
[1644247885523,0.057695,43362.0,43361.0,0.05]
[1644247886115,0.057695,43362.0,43360.0,0.05]
[1644247886315,0.057695,43362.0,43361.0,0.1]
[1644247886516,0.057695,43362.0,43361.0,0.05]
[1644247887316,0.05776216,43362.0,43361.0,0.05]
[1644247888219,0.0574846,43362.0,43361.0,0.05]
[1644247889667,0.0574846,43362.0,43360.0,0.00018222]
[1644247891468,0.04968523,43362.0,43360.0,0.00018222]
[1644247891870,0.04968523,43362.0,43360.0,0.29733812]
[1644247892269,0.06982194,43366.0,43360.0,0.39733812]
[1644247892470,0.06982194,43366.0,43362.0,0.29117537]
[1644247892670,0.06917863,43366.0,43362.0,0.29117537]
[1644247892869,0.06917863,43366.0,43363.0,0.05]
[1644247893116,0.06982197,43366.0,43363.0,0.05]
[1644247893620,0.18520697,43366.0,43363.0,0.05]
[1644247893819,0.32319655,43365.0,43363.0,0.05]
[1644247894016,0.0462,43365.0,43360.0,0.00018222]
[1644247894217,0.18456363,43366.0,43360.0,0.05018222]
[1644247895021,0.18456363,43366.0,43361.0,0.26462472]
[1644247895320,0.06982197,43366.0,43365.0,0.2094246]
[1644247895517,0.06982197,43366.0,43365.0,0.2594246]
[1644247895717,0.06982197,43366.0,43365.0,0.05]
[1644247895921,0.06982197,43366.0,43363.0,0.05]
[1644247896318,0.06917863,43366.0,43363.0,0.05]
[1644247896518,0.06917863,43366.0,43361.0,0.1]
[1644247896773,0.06917863,43366.0,43363.0,0.33852029]
[1644247896975,0.06917863,43366.0,43364.0,0.05769]
[1644247900278,0.06917863,43366.0,43363.0,0.05]
[1644247900722,0.23233032,43364.0,43363.0,0.1]
[1644247901122,0.08844985,43365.0,43362.0,0.0001982]
[1644247901520,0.08844985,43365.0,43362.0,0.0501982]
[1644247901720,0.08844985,43365.0,43362.0,0.0001982]
[1644247902122,0.06982198,43366.0,43362.0,0.0001982]
[1644247902421,0.06982198,43366.0,43361.0,0.057897]
[1644247902422,0.06917863,43366.0,43361.0,0.057897]
[1644247902721,0.06982198,43366.0,43363.0,0.1]
[1644247902921,0.06982198,43366.0,43363.0,0.157693]
[1644247903121,0.06982198,43366.0,43363.0,0.207693]
[1644247903523,0.06917863,43366.0,43364.0,0.28517841]
[1644247903726,0.06917863,43366.0,43364.0,0.33517841]
[1644247904023,0.06917863,43366.0,43364.0,0.1]
[1644247904273,0.06917863,43366.0,43364.0,0.05]
[1644247904474,0.06917863,43366.0,43363.0,0.207693]
[1644247905077,0.06917863,43366.0,43363.0,0.157693]
[1644247905377,0.06917863,43366.0,43365.0,0.05]
[1644247905578,0.00064336,43367.0,43364.0,0.25]
[1644247905776,0.00064336,43367.0,43365.0,0.17302767]
[1644247905976,0.062452,43373.0,43365.0,0.17302767]
[1644247906279,0.00064336,43368.0,43366.0,0.59245302]
[1644247906877,0.00064336,43368.0,43366.0,1.08745302]
[1644247907079,0.062452,43373.0,43367.0,0.288383]
[1644247907278,0.062452,43373.0,43369.0,0.05767305]
[1644247907480,0.062452,43373.0,43370.0,0.057673]
[1644247907678,0.062452,43373.0,43370.0,0.357673]
[1644247907878,0.062452,43373.0,43371.0,0.05]
[1644247908920,0.062452,43373.0,43372.0,0.5]
[1644247909115,0.062452,43373.0,43372.0,0.55]
[1644247909717,0.062452,43373.0,43372.0,0.81937086]
[1644247910919,0.00064336,43375.0,43373.0,0.22391764]
[1644247911121,0.00064336,43375.0,43374.0,0.626512]
[1644247911423,0.003,43390.0,43377.0,1.126512]
[1644247911622,0.003,43390.0,43381.0,0.01955825]
[1644247911871,0.039953,43390.0,43382.0,0.5848104]
[1644247912069,0.039953,43390.0,43387.0,0.31399712]
[1644247912270,0.039953,43390.0,43388.0,0.29480873]
[1644247912468,0.003,43391.0,43389.0,0.43]
[1644247912668,0.003,43391.0,43390.0,0.05]
[1644247913468,0.002,43394.0,43390.0,0.65]
[1644247913668,0.002,43394.0,43391.0,0.26929037]
[1644247913867,0.002,43394.0,43391.0,0.31929037]
[1644247914073,0.002,43394.0,43391.0,0.37693337]
[1644247914267,0.002,43394.0,43391.0,0.54985637]
[1644247914670,0.002,43394.0,43391.0,0.280566]
[1644247914868,0.00264175,43394.0,43391.0,0.280566]
[1644247915620,0.002,43394.0,43391.0,0.780566]
[1644247916419,0.07139045,43399.0,43396.0,0.30330704]
[1644247916623,0.06827334,43399.0,43397.0,0.057643]
[1644247916819,0.11827334,43399.0,43397.0,0.057643]
[1644247917419,2.00614622,43399.0,43397.0,0.057643]
[1644247917722,0.15617203,43398.0,43396.0,0.22293]
[1644247918119,0.07318968,43397.0,43396.0,0.22293]
[1644247919121,0.07318968,43397.0,43396.0,0.107644]
[1644247919873,0.07318968,43397.0,43396.0,0.05]
[1644247920276,0.18850368,43397.0,43395.0,0.165287]
[1644247920474,0.05,43396.0,43395.0,0.165287]
[1644247921380,0.05,43396.0,43395.0,0.05]
[1644247921577,0.0962,43396.0,43393.0,0.07014466]
[1644247921775,0.0962,43396.0,43393.0,0.02014466]
[1644247921979,0.0962,43396.0,43392.0,0.01981799]
[1644247922177,0.36088923,43393.0,43392.0,0.01981799]
[1644247922376,0.50708923,43393.0,43392.0,0.01981799]
[1644247923126,0.253869,43393.0,43392.0,0.01981799]
[1644247923626,0.153869,43393.0,43392.0,0.01981799]
[1644247924627,0.107669,43393.0,43392.0,0.01981799]
[1644247924825,0.057669,43393.0,43392.0,0.01981799]
[1644247925024,0.00064011,43397.0,43392.0,0.01981799]
[1644247925225,0.05,43398.0,43392.0,0.01981799]
[1644247925424,0.24539792,43401.0,43392.0,0.01981799]
[1644247925724,0.05016949,43397.0,43393.0,0.107655]
[1644247926125,0.057652,43396.0,43393.0,0.157655]
[1644247927175,0.057652,43396.0,43393.0,0.272963]
[1644247928574,0.057652,43396.0,43394.0,0.19337292]
[1644247928775,0.057652,43396.0,43393.0,0.272963]
[1644247931722,0.10718138,43396.0,43393.0,0.272963]
[1644247934122,0.04952938,43396.0,43394.0,0.35645696]
[1644247935572,0.04952938,43396.0,43393.0,0.272963]
[1644247935774,0.05818451,43397.0,43393.0,0.272963]
[1644247935972,0.057648,43397.0,43393.0,0.272963]
[1644247936171,0.05818641,43397.0,43393.0,0.272963]
[1644247936972,0.04952938,43396.0,43393.0,0.272963]
[1644247938129,0.05818642,43397.0,43393.0,0.272963]
[1644247938328,0.057648,43397.0,43393.0,0.272963]
[1644247938531,0.05818641,43397.0,43393.0,0.267963]
[1644247939628,0.047648,43397.0,43393.0,0.267963]
[1644247939832,0.04818614,43397.0,43393.0,0.257963]
[1644247940832,0.047648,43397.0,43393.0,0.257963]
[1644247941034,0.04818614,43397.0,43393.0,0.257963]
[1644247941878,0.09771552,43397.0,43393.0,0.257963]
[1644247942078,0.09717738,43397.0,43396.0,0.003]
[1644247942279,0.09771552,43397.0,43396.0,0.003]
[1644247943078,0.09717738,43397.0,43396.0,0.003]
[1644247947226,0.037648,43397.0,43396.0,0.003]
[1644247947428,0.037648,43397.0,43396.0,0.003196]
[1644247951171,0.037648,43397.0,43396.0,4.5e-05]
[1644247952271,0.037648,43397.0,43395.0,0.057848]
[1644247953420,0.062452,43399.0,43398.0,0.65]
[1644247953622,0.9988,43404.0,43399.0,0.8]
[1644247953623,0.05828,43402.0,43399.0,0.8]
[1644247953821,0.38315064,43408.0,43400.0,1.38450522]
[1644247953822,0.00215064,43408.0,43400.0,1.38450522]
[1644247954123,0.02,43409.0,43402.0,0.8]
[1644247954422,0.01829711,43408.0,43407.0,0.29338393]
[1644247954619,0.01829711,43408.0,43404.0,0.01819213]
[1644247954620,0.00028275,43412.0,43410.0,0.20895526]
[1644247954820,0.057627,43413.0,43410.0,0.26658426]
[1644247955020,0.0579074,43413.0,43411.0,0.107629]
[1644247955220,0.04952938,43412.0,43411.0,0.107629]
[1644247955725,0.037627,43413.0,43411.0,0.107629]
[1644247956772,0.00081819,43414.0,43411.0,0.107629]
[1644247956972,0.00053779,43414.0,43411.0,0.107629]
[1644247957573,0.04980978,43415.0,43411.0,0.107813]
[1644247957774,0.05034757,43415.0,43411.0,0.607813]
[1644247958075,0.04952938,43412.0,43411.0,0.607813]
[1644247958276,0.04952938,43412.0,43411.0,0.557813]
[1644247958872,0.04952938,43412.0,43411.0,0.057813]
[1644247959073,0.43063199,43412.0,43411.0,0.000184]
[1644247959274,0.20159822,43412.0,43411.0,0.000184]
[1644247959477,0.51544648,43412.0,43411.0,0.000184]
[1644247960076,0.20159822,43412.0,43411.0,0.000184]
[1644247960529,0.10159822,43412.0,43411.0,0.000184]
[1644247960729,0.09572938,43412.0,43411.0,0.000184]
[1644247960928,0.09572938,43412.0,43411.0,0.050184]
[1644247961825,0.29914653,43412.0,43411.0,0.050184]
[1644247962826,0.29914653,43412.0,43411.0,0.020384]
[1644247963026,1.09572938,43412.0,43411.0,0.000184]
[1644247963226,1.04952938,43412.0,43411.0,0.000184]
[1644247964026,1.04452938,43412.0,43411.0,0.000184]
[1644247964270,1.0,43412.0,43411.0,0.050184]
[1644247964870,1.0992039,43412.0,43411.0,0.050184]
[1644247965271,1.33228634,43412.0,43411.0,0.050184]
[1644247965472,1.0992039,43412.0,43411.0,0.050184]
[1644247965871,1.1992039,43412.0,43411.0,0.050184]
[1644247970426,1.0992039,43412.0,43411.0,0.050184]
[1644247974000,1.14373328,43412.0,43411.0,0.050184]
[1644247974200,1.0992039,43412.0,43411.0,0.050184]
[1644247976430,1.0,43412.0,43411.0,0.050184]
[1644247976628,1.0,43412.0,43411.0,0.64124319]
[1644247977631,0.02,43419.0,43412.0,0.8]
[1644247977830,0.63068376,43428.0,43412.0,0.8]
[1644247977831,0.18631211,43428.0,43415.0,0.857607]
[1644247978130,0.05828,43428.0,43416.0,1.1]
[1644247978328,0.02,43429.0,43419.0,0.326512]
[1644247978529,2.573007,43424.0,43421.0,1.126512]
[1644247978730,0.08289032,43431.0,43422.0,1.126512]
[1644247978933,0.02,43439.0,43436.0,0.21738213]
[1644247979375,0.02,43439.0,43436.0,0.31738213]
[1644247979676,4.88648791,43437.0,43436.0,0.58263242]
[1644247979876,4.63648791,43437.0,43436.0,0.58263242]
[1644247980075,4.63648791,43437.0,43436.0,0.36525029]
[1644247980575,2.13210501,43437.0,43436.0,0.36525029]
[1644247980974,2.13210501,43437.0,43436.0,0.1]
[1644247981175,2.13210501,43437.0,43436.0,0.045]
[1644247982376,2.13210501,43437.0,43436.0,0.04515536]
[1644247982778,2.13210501,43437.0,43436.0,0.09515536]
[1644247983038,2.13210501,43437.0,43436.0,0.04515536]
[1644247983233,2.13210501,43437.0,43436.0,0.09515536]
[1644247983429,0.32200013,43439.0,43436.0,0.09515536]
[1644247983630,0.32200013,43439.0,43436.0,0.04515536]
[1644247983830,0.32200013,43439.0,43436.0,0.09515536]
[1644247983831,0.02062575,43439.0,43436.0,0.09515536]
[1644247984134,0.02,43439.0,43436.0,0.09515536]
[1644247985344,0.02,43439.0,43436.0,0.04515536]
[1644247985530,0.02,43439.0,43436.0,0.09515536]
[1644247985830,0.015,43439.0,43436.0,0.09515536]
[1644247986029,0.015,43439.0,43436.0,0.04515536]
[1644247986230,0.015,43439.0,43436.0,0.09515536]
[1644247986783,0.015,43439.0,43437.0,0.32288937]
[1644247986980,0.015,43439.0,43437.0,0.0575861]
[1644247987279,0.015,43439.0,43438.0,0.00015483]
[1644247987680,0.015,43439.0,43438.0,0.22663352]
[1644247987879,0.015,43439.0,43438.0,0.32663352]
[1644247988480,0.00250261,43447.0,43439.0,0.8]
[1644247988683,0.0401,43450.0,43439.0,0.8]
[1644247988684,0.00058834,43450.0,43441.0,0.8]
[1644247988982,0.05988467,43451.0,43444.0,0.326512]
[1644247989180,0.14060696,43454.0,43443.0,0.85]
[1644247989383,0.14060696,43454.0,43452.0,0.22642152]
[1644247989581,0.001,43456.0,43454.0,0.8]
[1644247989782,0.8981,43470.0,43454.0,0.8]
[1644247989783,0.01304957,43459.0,43457.0,0.326512]
[1644247989981,0.0208,43467.0,43459.0,0.326512]
[1644247990180,0.0208,43467.0,43460.0,0.0462]
[1644247990381,0.00074394,43464.0,43461.0,0.3462]
[1644247990633,0.0208,43467.0,43462.0,1.07005161]
[1644247991128,0.0208,43467.0,43463.0,0.05]
[1644247991329,0.02,43469.0,43464.0,0.326512]
[1644247991530,0.00017357,43467.0,43465.0,0.3462]
[1644247991730,0.00017357,43467.0,43466.0,0.376512]
[1644247991731,0.02317357,43467.0,43466.0,0.376512]
[1644247991940,0.06314613,43477.0,43468.0,1.126512]
[1644247992133,0.0185341,43488.0,43471.0,0.43]
[1644247992336,0.0025526,43493.0,43476.0,0.5772]
[1644247992533,0.08283816,43505.0,43492.0,0.8]
[1644247992736,0.23044,43504.0,43493.0,0.722712]
[1644247992931,0.23044,43504.0,43495.0,0.326512]
[1644247993132,0.23044,43504.0,43501.0,0.326512]
[1644247993332,0.0225,43502.0,43501.0,0.05]
[1644247993533,0.25294,43502.0,43501.0,0.1462]
[1644247993834,0.25294,43502.0,43501.0,0.1412]
[1644247994032,0.25294,43502.0,43501.0,0.095]
[1644247994284,0.25294,43502.0,43499.0,0.5]
[1644247994285,0.25294,43502.0,43499.0,0.55]
[1644247994490,0.29892594,43501.0,43499.0,0.05]
[1644247994789,0.23018326,43501.0,43498.0,0.057497]
[1644247994984,0.23018326,43501.0,43497.0,0.07020607]
[1644247995184,0.23046511,43501.0,43497.0,0.02020607]
[1644247995385,0.0462,43500.0,43497.0,0.02020607]
[1644247995586,0.27664,43500.0,43497.0,0.02020607]
[1644247995792,0.33068668,43498.0,43497.0,0.02020607]
[1644247995987,0.33068668,43498.0,43497.0,0.01520607]
[1644247995988,0.37688668,43498.0,43497.0,0.01520607]
[1644247996187,0.47660951,43498.0,43497.0,0.01520607]
[1644247996386,0.54915475,43498.0,43497.0,0.01520607]
[1644247996585,1.12635475,43498.0,43496.0,0.5]
[1644247997090,0.27664,43497.0,43493.0,0.01924535]
[1644247997288,0.115078,43496.0,43493.0,0.01924535]
[1644247997487,0.0462,43495.0,43493.0,0.01924535]
[1644247997687,0.0462,43495.0,43485.0,0.05]
[1644247997688,0.8,43494.0,43485.0,0.05]
[1644247997888,0.8,43494.0,43478.0,0.05754]
[1644247997889,0.5772,43488.0,43478.0,0.05754]
[1644247998132,0.5772,43479.0,43469.0,0.05]
[1644247998332,0.5772,43470.0,43468.0,0.00072022]
[1644247998530,0.0462,43478.0,43461.0,0.02]
[1644247998531,0.6234,43469.0,43461.0,0.02]
[1644247998729,0.0462,43469.0,43468.0,0.00072013]
[1644247998927,0.7234,43469.0,43468.0,0.00072013]
[1644247999529,0.6234,43469.0,43468.0,0.00072013]
[1644247999729,0.6234,43469.0,43461.0,0.02]
[1644247999730,0.7234,43469.0,43461.0,0.02]
[1644247999930,0.1462,43469.0,43461.0,0.02]
[1644248000530,0.203762,43469.0,43461.0,0.02]
[1644248000732,0.1462,43469.0,43461.0,0.02]
[1644248000930,0.1462,43469.0,43464.0,0.02013312]
[1644248000931,0.0462,43469.0,43464.0,0.02013312]
[1644248002172,0.04648185,43469.0,43464.0,0.02081032]
[1644248002475,0.00028185,43472.0,43468.0,0.0001234]
[1644248002672,0.37347063,43474.0,43468.0,0.0001234]
[1644248002673,0.04258185,43473.0,43468.0,0.0001234]
[1644248002875,0.0423,43473.0,43468.0,0.0001234]
[1644248003074,0.00239261,43469.0,43468.0,0.0001234]
[1644248003575,0.0006138,43479.0,43469.0,0.45]
[1644248003775,0.00036959,43479.0,43470.0,0.25]
[1644248003974,0.00036959,43479.0,43469.0,0.55]
[1644248003975,0.00036959,43479.0,43469.0,0.1]
[1644248004276,0.24017538,43478.0,43469.0,0.05]
[1644248004473,0.24017538,43478.0,43469.0,0.06860508]
[1644248004674,0.24017538,43478.0,43469.0,0.00860508]
[1644248005076,0.2264855,43481.0,43469.0,0.00860508]
[1644248005274,0.0423,43480.0,43469.0,0.00860508]
[1644248005930,0.22577352,43478.0,43469.0,0.00860508]
[1644248006130,0.0423,43480.0,43469.0,0.00860508]
[1644248006330,0.2264855,43481.0,43469.0,0.00860508]
[1644248006531,0.2264855,43481.0,43468.0,0.1001234]
[1644248006730,0.02062006,43480.0,43468.0,0.0001234]
[1644248006930,0.057554,43478.0,43468.0,0.0001234]
[1644248007131,0.02062006,43480.0,43471.0,0.00053549]
[1644248007132,0.08213812,43476.0,43471.0,0.00053549]
[1644248007332,0.21928357,43479.0,43471.0,0.00053549]
[1644248008130,0.21928357,43479.0,43468.0,0.2644974]
[1644248008330,0.21928357,43479.0,43471.0,0.0007195]
[1644248008932,0.0423,43478.0,43471.0,0.0007195]
[1644248009773,0.30397357,43477.0,43471.0,0.0007195]
[1644248009974,0.20403505,43472.0,43471.0,0.0007195]
[1644248010175,0.08547859,43474.0,43471.0,0.0007195]
[1644248010376,0.0423,43476.0,43463.0,0.30682626]
[1644248010573,0.0423,43476.0,43470.0,0.0007195]
[1644248011575,0.0423,43476.0,43471.0,0.08]
[1644248011779,0.0423,43476.0,43472.0,0.08]
[1644248012275,0.0423,43476.0,43473.0,9.496e-05]
[1644248013133,0.00018234,43481.0,43476.0,0.195063]
[1644248013331,0.00018234,43481.0,43477.0,0.137536]
[1644248013533,0.00018234,43481.0,43479.0,0.08]
[1644248013732,0.00018234,43481.0,43479.0,0.43]
[1644248013931,0.00018234,43481.0,43480.0,0.08]
[1644248014131,0.01849704,43484.0,43480.0,0.08]
[1644248014330,0.00018236,43482.0,43480.0,0.08]
[1644248014531,0.00018236,43482.0,43481.0,0.08]
[1644248014733,0.00018236,43482.0,43481.0,0.13]
[1644248015133,0.00018236,43482.0,43481.0,0.21835]
[1644248015333,0.01849704,43484.0,43481.0,0.21835]
[1644248015535,0.01910491,43484.0,43481.0,0.21835]
[1644248015733,0.00060787,43484.0,43483.0,0.13]
[1644248015933,0.00060787,43484.0,43483.0,0.35089]
[1644248016133,0.00060787,43484.0,43483.0,0.65089]
[1644248016333,0.00060787,43484.0,43483.0,0.40089]
[1644248016536,0.099828,43498.0,43483.0,0.40089]
[1644248016777,0.00060787,43486.0,43485.0,0.08]
[1644248017176,0.00060787,43486.0,43485.0,0.13]
[1644248017778,0.23249938,43490.0,43485.0,0.13]
[1644248017978,0.00049105,43488.0,43485.0,0.13]
[1644248019078,0.00014731,43489.0,43485.0,0.13]
[1644248019480,0.00042996,43489.0,43485.0,0.08]
[1644248019680,0.2395322,43486.0,43485.0,0.13]
[1644248019878,0.00014731,43489.0,43485.0,0.13]
[1644248020081,0.00028265,43488.0,43485.0,0.13]
[1644248020280,0.00049105,43488.0,43485.0,0.13]
[1644248020835,0.00049105,43488.0,43485.0,0.39443768]
[1644248021033,0.00049105,43488.0,43485.0,0.13]
[1644248021334,0.4075,43492.0,43490.0,0.0002263]
[1644248021335,0.3652,43492.0,43490.0,0.0002263]
[1644248021733,0.185322,43493.0,43490.0,0.0002263]
[1644248022734,0.185322,43493.0,43490.0,0.0802263]
[1644248023133,0.185322,43493.0,43491.0,0.08]
[1644248023336,0.185322,43493.0,43492.0,0.08]
[1644248023533,0.18504512,43493.0,43492.0,0.08]
[1644248023935,0.18504512,43493.0,43492.0,0.34246113]
[1644248024380,0.01909123,43499.0,43492.0,0.34246113]
[1644248024576,0.3797,43510.0,43492.0,0.34246113]
[1644248024779,0.10570668,43502.0,43492.0,0.34246113]
[1644248025178,0.10570668,43502.0,43495.0,0.08]
[1644248025380,0.01987,43502.0,43495.0,0.39378965]
[1644248025578,0.01987,43502.0,43495.0,0.44378965]
[1644248025779,0.01987,43502.0,43495.0,0.54378965]
[1644248025983,0.01987,43502.0,43498.0,0.08]
[1644248026179,0.01987,43502.0,43501.0,0.08]
[1644248026379,0.01987,43502.0,43501.0,0.3763462]
[1644248026579,0.0009984,43504.0,43501.0,0.4763462]
[1644248026781,0.0009984,43504.0,43503.0,0.08]
[1644248026980,0.0009984,43504.0,43503.0,0.35616086]
[1644248027280,0.0009984,43504.0,43503.0,0.45616086]
[1644248027680,0.06227322,43511.0,43505.0,0.08]
[1644248027681,0.05916105,43511.0,43505.0,0.08]
[1644248027881,0.05916105,43511.0,43509.0,0.08]
[1644248028331,0.05916105,43511.0,43510.0,0.08]
[1644248028534,0.02916105,43511.0,43510.0,0.075]
[1644248029234,0.00588783,43511.0,43510.0,0.075]
[1644248029837,0.07761335,43511.0,43510.0,0.075]
[1644248030835,0.30147382,43511.0,43510.0,0.075]
[1644248032077,0.00588783,43511.0,43510.0,0.075]
[1644248032274,0.00588783,43511.0,43510.0,0.17509924]
[1644248032673,0.00588783,43511.0,43510.0,0.16909924]
[1644248032674,0.00747972,43511.0,43510.0,0.16909924]
[1644248033073,0.35052276,43511.0,43510.0,0.16909924]
[1644248033676,0.00747972,43511.0,43510.0,0.16909924]
[1644248038628,0.8,43510.0,43502.0,0.01837384]
[1644248038832,0.34248046,43509.0,43502.0,0.01837384]
[1644248039028,0.0423,43508.0,43502.0,0.01837384]
[1644248039479,0.36380749,43503.0,43502.0,0.01837384]
[1644248039680,0.72657473,43503.0,43502.0,0.01837384]
[1644248039878,0.72657473,43503.0,43500.0,0.0002263]
[1644248039879,0.8,43502.0,43500.0,0.0002263]
[1644248040079,0.38032048,43501.0,43500.0,0.0002263]
[1644248040279,0.0423,43501.0,43500.0,0.0002263]
[1644248042182,0.01865663,43503.0,43502.0,0.00012633]
[1644248042381,0.01837384,43503.0,43502.0,0.00012633]
[1644248043038,0.23304745,43503.0,43502.0,0.00012633]
[1644248043437,0.49968344,43503.0,43502.0,0.00012633]
[1644248044039,0.56279887,43503.0,43502.0,0.00012633]
[1644248044636,0.34812526,43503.0,43502.0,0.00012633]
[1644248044838,0.32975142,43503.0,43502.0,0.00012633]
[1644248045837,0.29675142,43503.0,43502.0,0.00012633]
[1644248046439,0.23363599,43503.0,43502.0,0.00012633]
[1644248047476,0.23363599,43503.0,43500.0,0.00035263]